bitfinex-derivatives/quotes_BTCF0:USTF0_20250426
["timestamp","ask_amount","ask_price","bid_price","bid_amount"]
[1745704967782,0.238,94509.0,94508.0,0.49917757]
[1745704968771,0.239,94509.0,94508.0,0.49917757]
[1745704969564,0.238,94509.0,94508.0,0.49917757]
[1745704970966,0.23821906,94509.0,94508.0,0.49917757]
[1745704975567,0.23821906,94509.0,94508.0,0.43497757]
[1745704975769,0.23821906,94509.0,94508.0,0.49913757]
[1745704976374,0.23821906,94509.0,94508.0,0.28758307]
[1745704976572,0.23821906,94509.0,94508.0,0.48260427]
[1745704976771,0.23821906,94509.0,94508.0,0.49913591]
[1745704977166,0.23821906,94509.0,94508.0,0.15653164]
[1745704977379,0.53403106,94509.0,94508.0,0.15653164]
[1745704977767,0.53403106,94509.0,94508.0,0.01653164]
[1745704979877,0.52906,94508.0,94491.0,0.00528977]
[1745704980072,0.3608,94501.0,94491.0,0.00528977]
[1745704980267,0.0963,94500.0,94491.0,0.00528977]
[1745704980471,0.99122,94500.0,94491.0,0.00528977]
[1745704980671,1.24122,94500.0,94491.0,0.00528977]
[1745704981177,1.40922,94500.0,94499.0,0.21660105]
[1745704982977,1.40922,94500.0,94491.0,0.00528977]
[1745704983183,0.3608,94492.0,94491.0,0.00528977]
[1745704983379,0.706628,94492.0,94490.0,0.33272506]
[1745704983580,0.666382,94491.0,94485.0,0.00528977]
[1745704983782,0.428832,94491.0,94485.0,0.00528977]
[1745704983980,0.105832,94490.0,94485.0,0.00528977]
[1745704984172,0.523832,94490.0,94485.0,0.00528977]
[1745704984374,0.137432,94489.0,94485.0,0.00528977]
[1745704984575,0.410032,94489.0,94485.0,0.00528977]
[1745704984878,0.410032,94489.0,94487.0,0.01687063]
[1745704984879,0.105832,94488.0,94487.0,0.01687063]
[1745704985073,0.345832,94488.0,94487.0,0.01687063]
[1745704985283,0.410032,94488.0,94487.0,0.01687063]
[1745704986186,0.578032,94488.0,94487.0,0.01687063]
[1745704987086,0.578036,94488.0,94487.0,0.01687063]
[1745704988087,0.578036,94488.0,94487.0,0.01487063]
[1745704988387,0.995936,94488.0,94487.0,0.01687063]
[1745704988784,0.8901,94488.0,94487.0,0.01687063]
[1745704988988,0.886596,94488.0,94487.0,0.01687063]
[1745704990988,1.247396,94488.0,94487.0,0.01687063]
[1745704991692,1.4589953,94488.0,94487.0,0.01687063]
[1745704993989,1.4589953,94488.0,94487.0,0.01487063]
[1745704994293,1.4589953,94488.0,94487.0,0.01587063]
[1745704996491,1.5648313,94488.0,94487.0,0.01587063]
[1745705000096,1.5678313,94488.0,94487.0,0.01487063]
[1745705001688,1.2070313,94488.0,94487.0,0.01487063]
[1745705001892,1.9286313,94488.0,94487.0,0.01487063]
[1745705005496,1.8644313,94488.0,94487.0,0.01487063]
[1745705006988,1.7585953,94488.0,94487.0,0.01487063]
[1745705009803,1.7585953,94488.0,94487.0,0.03070429]
[1745705012604,1.0369953,94488.0,94487.0,0.03070429]
[1745705012809,1.3977953,94488.0,94487.0,0.03070429]
[1745705014904,1.3977953,94488.0,94487.0,0.03064791]
[1745705016599,1.3977953,94488.0,94487.0,0.0306354]
[1745705018905,1.3977953,94488.0,94487.0,0.03054859]
[1745705021997,1.3977953,94488.0,94487.0,0.0306047]
[1745705022300,1.0369953,94488.0,94487.0,0.0306047]
[1745705022507,1.3977953,94488.0,94487.0,0.0306047]
[1745705022807,1.3977953,94488.0,94487.0,0.03060788]
[1745705025106,1.3977953,94488.0,94487.0,0.04060788]
[1745705025408,1.0369953,94488.0,94487.0,0.04060788]
[1745705025607,1.3977953,94488.0,94487.0,0.04060788]
[1745705026503,1.3977953,94488.0,94487.0,0.04057239]
[1745705028403,1.3977953,94488.0,94487.0,0.04058956]
[1745705028813,1.3977953,94488.0,94487.0,0.03058956]
[1745705029512,1.4285953,94488.0,94487.0,0.03058956]
[1745705031408,1.4285953,94488.0,94487.0,0.03058693]
[1745705034011,1.4285953,94488.0,94487.0,0.03061747]
[1745705037816,1.4285953,94488.0,94487.0,0.03059769]
[1745705041213,1.4285953,94488.0,94487.0,0.030604]
[1745705042624,1.4285953,94488.0,94487.0,0.03058384]
[1745705044614,1.4285953,94488.0,94487.0,0.03070903]
[1745705046414,1.4285953,94488.0,94487.0,0.0309322]
[1745705048326,1.4285953,94488.0,94487.0,0.03139296]
[1745705048619,1.0677953,94488.0,94487.0,0.03139296]
[1745705048919,1.4285953,94488.0,94487.0,0.02789596]
[1745705050219,1.4285953,94488.0,94487.0,0.02789555]
[1745705052126,1.4285953,94488.0,94487.0,0.02791166]
[1745705052827,1.42878032,94488.0,94487.0,0.02791166]
[1745705064328,1.39798032,94488.0,94487.0,0.24951316]
[1745705064631,0.98008032,94488.0,94487.0,0.03791091]
[1745705065023,0.98008032,94488.0,94487.0,0.02791091]
[1745705065421,0.98008032,94488.0,94487.0,0.03791091]
[1745705068025,0.76848102,94488.0,94487.0,0.24951241]
[1745705068225,0.81208032,94488.0,94487.0,0.24951241]
[1745705068429,0.81208032,94488.0,94487.0,0.03791091]
[1745705068733,0.81208032,94488.0,94487.0,0.03783141]
[1745705069129,0.98008032,94488.0,94487.0,0.03783141]
[1745705070436,0.98008032,94488.0,94487.0,0.24943291]
[1745705076341,0.98008032,94488.0,94487.0,0.24951183]
[1745705079028,0.4179,94493.0,94492.0,0.2115903]
[1745705079234,0.8094881,94493.0,94492.0,0.422327]
[1745705079432,0.8094881,94493.0,94492.0,0.528155]
[1745705079835,0.8094881,94493.0,94492.0,0.620655]
[1745705080436,0.8134881,94493.0,94492.0,0.620655]
[1745705081239,0.9814881,94493.0,94492.0,0.620655]
[1745705081742,0.9814881,94493.0,94492.0,0.62065413]
[1745705082247,0.5635881,94493.0,94492.0,0.62065413]
[1745705083441,0.5635881,94493.0,94492.0,0.51482613]
[1745705083739,0.5635881,94493.0,94492.0,0.24153583]
[1745705083941,0.6254881,94493.0,94492.0,0.24153583]
[1745705084139,0.6565881,94493.0,94492.0,0.24153583]
[1745705085737,1.0173881,94493.0,94492.0,0.24153583]
[1745705086746,1.0173881,94493.0,94492.0,0.17733583]
[1745705087248,1.0173881,94493.0,94492.0,0.14653583]
[1745705089565,0.9869881,94493.0,94492.0,0.1518256]
[1745705089754,0.9869881,94493.0,94492.0,0.3634159]
[1745705090667,0.9869881,94493.0,94492.0,0.3962159]
[1745705090965,0.9869881,94493.0,94492.0,0.1846256]
[1745705091266,0.9869881,94493.0,94492.0,0.18462621]
[1745705092453,0.9869881,94493.0,94492.0,0.21672621]
[1745705092854,0.6261881,94493.0,94492.0,0.21672621]
[1745705093158,0.9869881,94493.0,94492.0,0.21672621]
[1745705093964,0.6261881,94493.0,94492.0,0.21672621]
[1745705094159,0.9869881,94493.0,94492.0,0.21672621]
[1745705096655,0.9869881,94493.0,94492.0,0.21672626]
[1745705097769,0.6261881,94493.0,94492.0,0.21672626]
[1745705097959,0.9869881,94493.0,94492.0,0.21672626]
[1745705101371,0.6261881,94493.0,94492.0,0.21672626]
[1745705101573,0.9869881,94493.0,94492.0,0.42799212]
[1745705102578,0.9869881,94493.0,94492.0,0.21640182]
[1745705102973,0.6261881,94493.0,94492.0,0.21640182]
[1745705105476,0.6261881,94493.0,94492.0,0.42799212]
[1745705107070,0.6261881,94493.0,94492.0,0.42831649]
[1745705107772,0.6261881,94493.0,94492.0,0.21672619]
[1745705109068,0.6261881,94493.0,94492.0,0.21672615]
[1745705109672,0.6261881,94493.0,94492.0,0.42831645]
[1745705111074,0.6261881,94493.0,94492.0,0.21672615]
[1745705111270,0.6581881,94493.0,94492.0,0.18462615]
[1745705112666,0.6581881,94493.0,94492.0,0.18462627]
[1745705112868,0.6261881,94493.0,94492.0,0.21612627]
[1745705113070,0.6261881,94493.0,94492.0,0.42771657]
[1745705113569,0.6261881,94493.0,94492.0,0.21612627]
[1745705114466,0.6261881,94493.0,94492.0,0.19958977]
[1745705114671,0.6261881,94493.0,94492.0,0.21612627]
[1745705116069,0.9869881,94493.0,94492.0,0.21612627]
[1745705116578,0.9869881,94493.0,94492.0,0.21612631]
[1745705118278,0.9869881,94493.0,94492.0,0.42771661]
[1745705118470,0.6261881,94493.0,94492.0,0.42771661]
[1745705119675,0.6261881,94493.0,94492.0,0.21612631]
[1745705122381,0.352,94493.0,94492.0,0.21612631]
[1745705122676,0.352,94493.0,94492.0,0.42771661]
[1745705122980,0.7128,94493.0,94492.0,0.17933654]
[1745705123169,0.2115993,94488.0,94487.0,6e-08]
[1745705123378,0.0529018,94485.0,94465.0,0.00528977]
[1745705123677,0.3608,94478.0,94465.0,0.00528977]
[1745705123879,0.6008,94478.0,94465.0,0.00528977]
[1745705124071,0.7688,94478.0,94477.0,0.22251267]
[1745705124674,0.7688,94478.0,94477.0,0.0078316]
[1745705124879,0.7688,94478.0,94472.0,0.21468107]
[1745705125078,0.3608,94473.0,94472.0,0.21468107]
[1745705125273,0.6508,94473.0,94472.0,0.21468107]
[1745705126079,0.8188,94473.0,94472.0,0.21468107]
[1745705126882,0.8188,94473.0,94472.0,0.21568107]
[1745705127279,0.8188,94473.0,94472.0,0.001]
[1745705127479,1.1796,94473.0,94472.0,0.001]
[1745705128279,1.1796,94473.0,94472.0,0.00879214]
[1745705128979,1.5975,94473.0,94472.0,0.00879214]
[1745705139579,1.5975,94473.0,94472.0,0.01408191]
[1745705139779,1.5975,94473.0,94472.0,0.00879214]
[1745705140087,1.8091329,94473.0,94472.0,0.00879214]
[1745705141192,1.8737329,94473.0,94472.0,0.00879214]
[1745705142993,1.8747329,94473.0,94472.0,0.03889214]
[1745705145594,1.1531329,94473.0,94472.0,0.03889214]
[1745705145893,1.8747329,94473.0,94472.0,0.03889214]
[1745705149495,1.8435329,94473.0,94472.0,0.04418191]
[1745705153094,1.8435329,94473.0,94472.0,0.06041641]
[1745705153892,1.8435329,94473.0,94472.0,0.04418191]
[1745705154489,1.1219329,94473.0,94472.0,0.04418191]
[1745705154696,1.8435329,94473.0,94472.0,0.04418191]
[1745705156504,1.1219329,94473.0,94472.0,0.04418191]
[1745705156905,1.8435329,94473.0,94472.0,0.04418191]
[1745705158504,1.8101329,94473.0,94472.0,0.04418191]
[1745705158700,1.8101329,94473.0,94472.0,0.06030867]
[1745705159006,1.8101329,94473.0,94472.0,0.09140867]
[1745705159999,1.8101329,94473.0,94472.0,0.09182329]
[1745705164494,1.8101329,94473.0,94472.0,0.06072329]
[1745705166696,1.4493329,94473.0,94472.0,0.06072329]
[1745705168198,1.4493329,94473.0,94472.0,0.0607234]
[1745705168604,1.8101329,94473.0,94472.0,0.0607234]
[1745705170105,1.8101329,94473.0,94472.0,0.06072336]
[1745705170496,1.8101329,94473.0,94472.0,0.09192336]
[1745705171300,1.8101329,94473.0,94472.0,0.06072336]
[1745705173706,1.8101329,94473.0,94472.0,0.06072338]
[1745705176208,1.4493329,94473.0,94472.0,0.06072338]
[1745705177513,1.4493329,94473.0,94472.0,0.06072337]
[1745705179213,1.4493329,94473.0,94472.0,0.09212337]
[1745705179511,1.0885329,94473.0,94472.0,0.09212337]
[1745705179713,1.4493329,94473.0,94472.0,0.09212337]
[1745705180816,1.4493329,94473.0,94472.0,0.06072337]
[1745705181416,1.0885329,94473.0,94472.0,0.06072337]
[1745705181722,1.4493329,94473.0,94472.0,0.06072337]
[1745705183113,1.4493329,94473.0,94472.0,0.09548191]
[1745705183413,1.4493329,94473.0,94472.0,0.11202211]
[1745705183609,1.4493329,94473.0,94472.0,0.14292211]
[1745705186110,1.0885329,94473.0,94472.0,0.14292211]
[1745705186312,1.4493329,94473.0,94472.0,0.14292211]
[1745705187718,1.0314329,94473.0,94472.0,0.14292211]
[1745705188815,1.0314329,94473.0,94472.0,0.14292237]
[1745705192119,0.6706329,94473.0,94472.0,0.14292237]
[1745705192317,1.0314329,94473.0,94472.0,0.14292237]
[1745705193220,1.0314329,94473.0,94472.0,0.14292233]
[1745705196719,0.6706329,94473.0,94472.0,0.14292233]
[1745705196921,1.0314329,94473.0,94472.0,0.14292233]
[1745705201431,0.6706329,94473.0,94472.0,0.14292233]
[1745705201629,1.0314329,94473.0,94472.0,0.14292233]
[1745705202437,0.6706329,94473.0,94472.0,0.14292233]
[1745705202634,1.0314329,94473.0,94472.0,0.14292233]
[1745705204837,0.6706329,94473.0,94472.0,0.14292233]
[1745705205034,1.0314329,94473.0,94472.0,0.14292233]
[1745705205728,0.459,94473.0,94472.0,0.14292233]
[1745705206037,0.6706329,94473.0,94472.0,0.14292233]
[1745705207134,0.6706329,94473.0,94472.0,0.35455743]
[1745705207335,0.6706329,94473.0,94472.0,0.36537573]
[1745705207930,0.6696329,94473.0,94472.0,0.36637573]
[1745705209535,0.6696329,94473.0,94472.0,0.3663744]
[1745705210039,0.6696329,94473.0,94472.0,0.36637439]
[1745705213439,0.6696329,94473.0,94472.0,0.36637412]
[1745705216933,0.6696329,94473.0,94472.0,0.34983531]
[1745705217134,0.6696329,94473.0,94472.0,0.36637409]
[1745705218138,0.6696329,94473.0,94472.0,0.36637408]
[1745705222043,0.6696329,94473.0,94472.0,0.36637437]
[1745705223052,0.6696329,94473.0,94472.0,0.1073312]
[1745705223246,0.6696329,94473.0,94472.0,0.11262097]
[1745705223642,0.7312329,94473.0,94472.0,0.11262097]
[1745705227448,0.7312329,94473.0,94472.0,0.11262143]
[1745705231259,0.7312329,94473.0,94472.0,0.32425653]
[1745705231454,0.7012329,94473.0,94472.0,0.32425653]
[1745705233049,0.7012329,94473.0,94472.0,0.32425642]
[1745705234451,0.7012329,94473.0,94472.0,0.11262132]
[1745705237345,0.7012329,94473.0,94472.0,0.32425642]
[1745705238651,0.7012329,94473.0,94472.0,0.32425637]
[1745705238852,0.6696329,94473.0,94472.0,0.32425637]
[1745705240056,0.458,94473.0,94472.0,0.32425637]
[1745705241148,0.29,94473.0,94472.0,0.32425637]
[1745705242359,0.5016329,94473.0,94472.0,0.32425637]
[1745705243146,0.6696329,94473.0,94472.0,0.32425637]
[1745705244562,0.6696329,94473.0,94472.0,0.48516619]
[1745705245380,0.10749214,94473.0,94472.0,0.59101818]
[1745705245560,0.08749214,94473.0,94472.0,0.59101818]
[1745705246155,0.0313,94491.0,94483.0,0.2645055]
[1745705246360,0.6008,94487.0,94485.0,0.211606]
[1745705246558,0.6008,94487.0,94486.0,0.29224138]
[1745705246755,0.6008,94487.0,94486.0,0.39224138]
[1745705247158,0.408,94487.0,94486.0,0.46397115]
[1745705247758,0.41,94487.0,94486.0,0.46397115]
[1745705247959,0.41,94487.0,94486.0,0.46396908]
[1745705248358,0.41,94487.0,94486.0,0.56980508]
[1745705249561,0.408,94487.0,94486.0,0.56980508]
[1745705249763,0.409,94487.0,94486.0,0.56980508]
[1745705252260,0.241,94487.0,94486.0,0.56980508]
[1745705253067,0.409,94487.0,94486.0,0.46396908]
[1745705257170,0.27407431,94487.0,94486.0,0.46396908]
[1745705260762,0.27407431,94487.0,94486.0,0.46396804]
[1745705261164,0.27407431,94487.0,94486.0,0.463968]
[1745705262172,0.27407431,94487.0,94486.0,1.348984]
[1745705262367,0.13,94506.0,94505.0,0.2115612]
[1745705262567,0.13,94506.0,94505.0,0.42449409]
[1745705262568,0.25,94506.0,94505.0,0.42449409]
[1745705262765,0.25,94506.0,94505.0,0.43520255]
[1745705262971,0.25,94506.0,94505.0,0.49830191]
[1745705263171,0.418,94506.0,94505.0,0.50359168]
[1745705263369,0.418,94506.0,94505.0,0.60940367]
[1745705263564,0.418,94506.0,94505.0,0.70940367]
[1745705263970,0.178,94506.0,94505.0,0.70940367]
[1745705264162,0.01,94506.0,94505.0,0.70940367]
[1745705264971,0.01,94506.0,94505.0,0.72552918]
[1745705265175,0.00206542,94506.0,94505.0,0.72552918]
[1745705265367,0.00206542,94506.0,94505.0,0.72652918]
[1745705266366,0.00206542,94506.0,94505.0,0.71040367]
[1745705269877,0.00206542,94506.0,94505.0,0.64400367]
[1745705270074,0.00206542,94506.0,94505.0,0.71400367]
[1745705270480,0.00206542,94506.0,94505.0,0.7140017]
[1745705271083,0.17006542,94506.0,94505.0,0.7140017]
[1745705273977,0.17006542,94506.0,94505.0,0.8897017]
[1745705274182,0.17006542,94506.0,94505.0,0.71400131]
[1745705276082,0.17006542,94506.0,94505.0,0.71400121]
[1745705276274,0.00206542,94506.0,94505.0,0.71400121]
[1745705276680,0.0311,94509.0,94508.0,0.2115545]
[1745705276981,0.1411,94509.0,94508.0,0.37808429]
[1745705277178,0.3091,94509.0,94508.0,0.37808429]
[1745705277781,0.3091,94509.0,94508.0,0.40928429]
[1745705278377,0.3091,94509.0,94508.0,0.41028429]
[1745705278577,0.278,94509.0,94508.0,0.97689628]
[1745705278874,0.168,94509.0,94508.0,0.97689628]
[1745705279074,0.0628,94527.0,94508.0,0.76534178]
[1745705279278,0.1452,94518.0,94517.0,0.6723344]
[1745705279483,0.1452,94518.0,94517.0,0.83886419]
[1745705279977,0.1452,94518.0,94517.0,0.90176419]
[1745705280177,0.3132,94518.0,94517.0,0.90176419]
[1745705281084,0.3132,94518.0,94517.0,0.90176307]
[1745705281381,0.3142,94518.0,94517.0,0.90176307]
[1745705284575,0.3142,94518.0,94517.0,0.90176297]
[1745705288078,0.3142,94518.0,94517.0,1.01285274]
[1745705288388,0.0052,94548.0,94540.0,0.21677267]
[1745705288685,0.0052,94548.0,94540.0,0.7541006]
[1745705288686,0.2813,94541.0,94540.0,0.7541006]
[1745705288887,0.29277055,94541.0,94540.0,0.24648793]
[1745705289090,0.65357055,94541.0,94540.0,0.2517777]
[1745705289290,0.82157055,94541.0,94540.0,0.47108175]
[1745705289889,0.67225125,94541.0,94540.0,0.47108175]
[1745705290093,0.67225125,94541.0,94540.0,0.48182614]
[1745705290289,0.4493,94541.0,94540.0,0.48182614]
[1745705290880,0.4493,94541.0,94540.0,0.48682614]
[1745705291390,0.4493,94541.0,94540.0,0.48182614]
[1745705291691,0.4493,94541.0,94540.0,0.48582614]
[1745705291879,0.4493,94541.0,94540.0,0.41586614]
[1745705292081,0.6607807,94541.0,94540.0,0.48582614]
[1745705292287,0.4493,94541.0,94540.0,0.49822068]
[1745705293993,0.5119,94541.0,94540.0,0.4982205]
[1745705295290,0.5119,94541.0,94540.0,0.48582614]
[1745705295291,0.52337055,94541.0,94540.0,0.48582614]
[1745705295494,0.52337055,94541.0,94540.0,0.41586614]
[1745705295695,0.52337055,94541.0,94540.0,0.48686614]
[1745705297500,0.52337055,94541.0,94540.0,0.48686615]
[1745705298312,0.4493,94541.0,94540.0,0.48686615]
[1745705298504,0.4493,94541.0,94540.0,0.65006615]
[1745705298699,0.4493,94541.0,94540.0,1.01086615]
[1745705298903,0.409683,94541.0,94540.0,1.11664215]
[1745705299103,0.409683,94541.0,94540.0,1.17138404]
[1745705299314,0.0676792,94541.0,94540.0,1.12903501]
[1745705299601,0.0306792,94559.0,94558.0,0.2114427]
[1745705299806,0.3006792,94559.0,94558.0,0.36036186]
[1745705300003,0.31214975,94559.0,94558.0,0.36036139]
[1745705300308,0.48014975,94559.0,94558.0,0.36405892]
[1745705300508,0.48014975,94559.0,94558.0,0.36934869]
[1745705301305,0.48014975,94559.0,94558.0,0.35325877]
[1745705302002,0.48014975,94559.0,94558.0,0.42809877]
[1745705302408,0.48014975,94559.0,94558.0,0.46019877]
[1745705303312,0.4686792,94559.0,94558.0,0.46019877]
[1745705303611,0.0052,94578.0,94577.0,0.3114002]
[1745705303801,0.3072,94578.0,94577.0,0.8287265]
[1745705303999,0.31867055,94578.0,94577.0,0.62261607]
[1745705304199,0.53006845,94578.0,94577.0,0.23665607]
[1745705304401,0.31867055,94578.0,94577.0,0.37321627]
[1745705304609,0.31867055,94578.0,94577.0,0.44805627]
[1745705304912,0.31867055,94578.0,94577.0,0.45205627]
[1745705305114,0.28667055,94578.0,94577.0,0.46834792]
[1745705305406,0.2752,94578.0,94577.0,0.94153788]
[1745705305610,0.09,94597.0,94596.0,0.2113577]
[1745705305801,0.1,94597.0,94596.0,0.43311316]
[1745705306005,0.11147055,94597.0,94596.0,0.44940481]
[1745705306205,0.11147055,94597.0,94596.0,0.53333458]
[1745705306609,0.11147055,94597.0,94596.0,0.4885753]
[1745705306815,0.11147055,94597.0,94596.0,0.42079811]
[1745705307016,0.11147055,94597.0,94596.0,0.49943811]
[1745705307215,0.0013,94601.0,94599.0,0.21664077]
[1745705307408,0.365,94600.0,94599.0,0.49126503]
[1745705307603,0.365,94600.0,94599.0,1.26980503]
[1745705307803,0.365,94600.0,94599.0,1.03609668]
[1745705308006,0.365,94600.0,94599.0,0.50755668]
[1745705308411,0.365,94600.0,94599.0,0.50955668]
[1745705308613,0.365,94600.0,94599.0,0.50954377]
[1745705308813,0.30231769,94600.0,94599.0,0.50954377]
[1745705309114,0.30231769,94600.0,94599.0,0.40383577]
[1745705309314,0.36671769,94600.0,94599.0,0.48247577]
[1745705309514,0.58953704,94600.0,94599.0,0.27112477]
[1745705309817,0.86300914,94600.0,94599.0,0.265835]
[1745705310318,0.61300914,94600.0,94599.0,0.265835]
[1745705310518,0.61300914,94600.0,94599.0,0.477186]
[1745705310822,0.61300914,94600.0,94599.0,0.265835]
[1745705311918,0.61300914,94600.0,94599.0,0.477186]
[1745705312418,0.61300914,94600.0,94599.0,0.47718719]
[1745705312607,0.61300914,94600.0,94599.0,0.48247696]
[1745705312813,0.61300914,94600.0,94599.0,0.84327696]
[1745705313206,0.61300914,94600.0,94599.0,0.19248596]
[1745705313413,0.61300914,94600.0,94599.0,0.27112596]
[1745705317014,0.97380914,94600.0,94599.0,0.27112596]
[1745705317216,0.61300914,94600.0,94599.0,0.48247696]
[1745705318220,0.78100914,94600.0,94599.0,0.48247696]
[1745705319516,0.78100914,94600.0,94599.0,0.45357242]
[1745705319716,0.78100914,94600.0,94599.0,0.46618587]
[1745705320116,0.78100914,94600.0,94599.0,0.25483487]
[1745705320920,0.78100914,94600.0,94599.0,0.25479487]
[1745705321217,0.78100914,94600.0,94599.0,0.27064877]
[1745705321816,0.78100914,94600.0,94599.0,0.25479487]
[1745705322017,0.78100914,94600.0,94599.0,0.17619487]
[1745705322216,0.78100914,94600.0,94599.0,0.25479487]
[1745705323119,0.78100914,94600.0,94599.0,0.24240697]
[1745705323321,0.78100914,94600.0,94599.0,0.25479468]
[1745705323721,0.78100914,94600.0,94599.0,0.22588977]
[1745705324028,0.78100914,94600.0,94599.0,0.25479452]
[1745705325135,0.78100914,94600.0,94599.0,0.23827752]
[1745705325523,0.78100914,94600.0,94599.0,0.22588977]
[1745705325724,0.78100914,94600.0,94599.0,0.25479429]
[1745705325919,0.78100914,94600.0,94599.0,0.25479425]
[1745705326129,0.78100914,94600.0,94599.0,0.22588977]
[1745705326330,0.78100914,94600.0,94599.0,0.43724077]
[1745705326629,0.78100914,94600.0,94599.0,0.45375747]
[1745705327027,0.50696034,94600.0,94599.0,0.45375747]
[1745705327230,0.47386034,94600.0,94599.0,0.81455747]
[1745705327533,0.46238979,94600.0,94599.0,0.81455747]
[1745705327733,0.46238979,94600.0,94599.0,0.87442791]
[1745705327930,0.46238979,94600.0,94599.0,0.86204077]
[1745705328128,0.46238979,94600.0,94599.0,0.87442666]
[1745705328330,0.46238979,94600.0,94599.0,0.89094114]
[1745705328626,0.46238979,94600.0,94599.0,0.87442664]
[1745705328835,0.46238979,94600.0,94599.0,0.8785554]
[1745705329028,0.46238979,94600.0,94599.0,0.89094137]
[1745705330327,0.45743551,94600.0,94599.0,0.89094137]
[1745705331037,0.44475264,94600.0,94599.0,0.89094137]
[1745705331536,0.44475264,94600.0,94599.0,0.89094101]
[1745705331733,0.43682585,94600.0,94599.0,0.90684129]
[1745705332532,0.30206645,94600.0,94599.0,0.90684129]
[1745705333921,0.29463513,94600.0,94599.0,1.00684129]
[1745705334131,0.29463513,94600.0,94599.0,0.99094101]
[1745705334330,0.29463513,94600.0,94599.0,1.04562244]
[1745705334532,0.29463513,94600.0,94599.0,0.99094101]
[1745705334831,0.10597742,94600.0,94599.0,0.99094101]
[1745705335131,0.34597742,94600.0,94599.0,1.04562335]
[1745705335435,0.34597742,94600.0,94599.0,1.15133135]
[1745705336028,0.34597742,94600.0,94599.0,1.0966486]
[1745705336629,0.34597742,94600.0,94599.0,1.45190511]
[1745705336831,0.34597742,94600.0,94599.0,1.49423162]
[1745705337738,0.34597742,94600.0,94599.0,1.44051991]
[1745705337934,0.37647742,94600.0,94599.0,1.33481191]
[1745705338435,0.37647742,94600.0,94599.0,1.38958233]
[1745705338737,0.33897742,94600.0,94599.0,1.38958233]
[1745705339037,0.33897742,94600.0,94599.0,1.56528233]
[1745705340843,0.33897742,94600.0,94599.0,1.21002582]
[1745705341730,0.09897742,94600.0,94599.0,1.21002582]
[1745705341930,0.23897742,94600.0,94599.0,1.21002582]
[1745705342336,0.27057742,94600.0,94599.0,1.21002582]
[1745705342542,0.49339677,94600.0,94599.0,0.57408505]
[1745705342843,0.52519677,94600.0,94599.0,0.36986563]
[1745705343140,0.52519677,94600.0,94599.0,0.44946563]
[1745705344544,0.31384797,94600.0,94599.0,0.44946563]
[1745705347133,0.52519677,94600.0,94599.0,0.15851463]
[1745705347334,0.52519677,94600.0,94599.0,0.23811463]
[1745705347733,0.52519677,94600.0,94599.0,0.44946563]
[1745705352149,0.52519677,94600.0,94599.0,0.36986563]
[1745705352345,0.52519677,94600.0,94599.0,0.44946563]
[1745705354747,0.52519677,94600.0,94591.0,0.15680811]
[1745705354748,0.2113667,94592.0,94591.0,0.15680811]
[1745705354944,0.8221667,94592.0,94591.0,0.01]
[1745705355146,0.2113778,94587.0,94586.0,0.0796]
[1745705355344,0.2113823,94585.0,94584.0,0.0796]
[1745705355649,0.4513823,94585.0,94584.0,0.0796]
[1745705355848,0.4513823,94585.0,94584.0,0.08770007]
[1745705356052,0.5136823,94585.0,94584.0,0.08770007]
[1745705356251,0.6816823,94585.0,94584.0,0.08770007]
[1745705356446,0.7874063,94585.0,94584.0,0.08770007]
[1745705356646,0.7874063,94585.0,94584.0,0.09270007]
[1745705357156,0.7874063,94585.0,94584.0,0.01310007]
[1745705358051,0.6816823,94585.0,94584.0,0.01310007]
[1745705358351,0.7874063,94585.0,94584.0,0.01310007]
[1745705358555,0.2113845,94584.0,94583.0,0.21359832]
[1745705358751,0.9379125,94584.0,94583.0,0.21359832]
[1745705358954,1.0017125,94584.0,94583.0,0.21359832]
[1745705359153,0.2114002,94577.0,94576.0,0.07964]
[1745705359349,0.5014002,94577.0,94576.0,0.15964]
[1745705360050,0.5652002,94577.0,94576.0,0.15964]
[1745705360247,0.7332002,94577.0,94576.0,0.16264]
[1745705360448,0.7332002,94577.0,94576.0,0.17303168]
[1745705360851,0.7332002,94577.0,94576.0,0.16264]
[1745705362157,0.7332002,94577.0,94576.0,0.17068769]
[1745705365662,0.7332002,94577.0,94576.0,0.38209009]
[1745705365967,0.7332002,94577.0,94576.0,0.17068769]
[1745705366761,0.7332002,94577.0,94576.0,0.18720857]
[1745705368867,0.83893621,94577.0,94576.0,0.02756857]
[1745705369162,0.2114315,94563.0,94562.0,0.2114336]
[1745705369362,0.5014315,94563.0,94562.0,0.4185536]
[1745705369757,0.5014315,94563.0,94562.0,0.4510536]
[1745705369961,0.5628315,94563.0,94562.0,0.4510536]
[1745705370266,0.7318315,94563.0,94562.0,0.3739336]
[1745705370465,0.7318315,94563.0,94562.0,0.4510536]
[1745705370969,0.7318315,94563.0,94562.0,0.46170487]
[1745705372466,0.7318315,94563.0,94562.0,0.46965774]
[1745705372667,0.7318315,94563.0,94562.0,0.39249774]
[1745705372867,0.7318315,94563.0,94562.0,0.46965774]
[1745705373569,0.7008315,94563.0,94562.0,0.46965774]
[1745705373769,0.459,94563.0,94562.0,0.46965774]
[1745705373971,0.6704315,94563.0,94562.0,0.46965774]
[1745705375371,0.459,94563.0,94562.0,0.46965774]
[1745705376867,0.459,94563.0,94562.0,0.83045774]
[1745705379666,0.6704315,94563.0,94562.0,0.83045774]
[1745705380670,0.459,94563.0,94562.0,0.83045774]
[1745705381071,0.459,94563.0,94562.0,0.84697923]
[1745705381869,0.6704315,94563.0,94562.0,0.84697923]
[1745705383871,0.459,94563.0,94562.0,0.84697923]
[1745705385777,0.239,94563.0,94562.0,0.84697923]
[1745705386271,0.238,94563.0,94562.0,0.84697923]
[1745705386479,0.238,94563.0,94562.0,0.84797923]
[1745705386664,0.238,94563.0,94562.0,0.84797866]
[1745705387072,0.238,94563.0,94562.0,0.77081866]
[1745705387273,0.238,94563.0,94562.0,0.84797866]
[1745705387470,0.3608,94580.0,94577.0,0.0528496]
[1745705387678,0.8421951,94580.0,94579.0,0.2113957]
[1745705387878,0.8421951,94580.0,94579.0,0.43507662]
[1745705388075,0.8421951,94580.0,94579.0,0.49827662]
[1745705388076,1.0101951,94580.0,94579.0,0.49827662]
[1745705388479,0.6493951,94580.0,94579.0,0.49827662]
[1745705388979,0.6493935,94580.0,94579.0,0.49827662]
[1745705389179,0.438,94580.0,94579.0,0.49827662]
[1745705389373,0.438,94580.0,94579.0,0.49827541]
[1745705389572,0.44,94580.0,94579.0,0.85907541]
[1745705389776,0.19,94580.0,94579.0,0.85907541]
[1745705389982,0.188,94580.0,94579.0,0.85907541]
[1745705390474,0.188,94580.0,94579.0,0.85907369]
[1745705390981,0.3608,94597.0,94596.0,0.2113577]
[1745705391176,0.3608,94597.0,94596.0,0.36787569]
[1745705391177,0.25,94597.0,94596.0,0.36787569]